[Event "Titled Tuesday Blitz November 15 Early 2022"]
[White "Goltsev, Dmitry"]
[Black "Fathy, Elameir"]
[WhiteFideId "24176710"]
[BlackFideId "10600396"]
[WhiteElo "2289"]
[BlackElo "2311"]
[Result "1-0"]
[Round "01"]
[TimeControl "180+1"]
[Date "2022.11.16"]
[WhiteClock "0:01:39"]
[BlackClock "0:00:13"]

1. e4 {[%clk 0:02:55]}  c5 {[%clk 0:02:55]} 2. Nf3 {[%clk 0:02:53]}  d6 {[%clk 0:02:51]} 3. d4 {[%clk 0:02:53]}  cxd4 {[%clk 0:02:51]} 4. Nxd4 {[%clk 0:02:54]}  Nf6 {[%clk 0:02:52]} 5. Nc3 {[%clk 0:02:53]}  a6 {[%clk 0:02:52]} 6. Be2 {[%clk 0:02:53]}  e5 {[%clk 0:02:49]} 7. Nb3 {[%clk 0:02:52]}  Be7 {[%clk 0:02:48]} 8. Be3 {[%clk 0:02:51]}  Be6 {[%clk 0:02:47]} 9. f3 {[%clk 0:02:48]}  O-O {[%clk 0:02:36]} 10. O-O {[%clk 0:02:49]}  Qc7 {[%clk 0:02:27]} 11. Qd2 {[%clk 0:02:39]}  Nbd7 {[%clk 0:02:25]} 12. Rfd1 {[%clk 0:02:36]}  Rac8 {[%clk 0:02:20]} 13. Rac1 {[%clk 0:02:34]}  Nb6 {[%clk 0:02:15]} 14. Qe1 {[%clk 0:02:27]}  Nc4 {[%clk 0:01:37]} 15. Bxc4 {[%clk 0:02:25]}  Qxc4 {[%clk 0:01:37]} 16. Nd2 {[%clk 0:02:25]}  Qc6 {[%clk 0:01:34]} 17. Nf1 {[%clk 0:02:25]}  Rfd8 {[%clk 0:01:32]} 18. Ng3 {[%clk 0:02:25]}  d5 {[%clk 0:01:27]} 19. exd5 {[%clk 0:02:26]}  Nxd5 {[%clk 0:01:27]} 20. Nxd5 {[%clk 0:02:25]}  Rxd5 {[%clk 0:01:24]} 21. Rxd5 {[%clk 0:02:24]}  Qxd5 {[%clk 0:01:23]} 22. b3 {[%clk 0:02:24]}  f5 {[%clk 0:01:21]} 23. c4 {[%clk 0:02:24]}  Qc6 {[%clk 0:01:19]} 24. Bf2 {[%clk 0:02:20]}  Bf6 {[%clk 0:01:17]} 25. Rd1 {[%clk 0:02:19]}  g6 {[%clk 0:01:15]} 26. Ne2 {[%clk 0:02:19]}  b5 {[%clk 0:01:12]} 27. c5 {[%clk 0:02:18]}  Be7 {[%clk 0:01:02]} 28. b4 {[%clk 0:02:18]}  Bxa2 {[%clk 0:01:01]} 29. Nc3 {[%clk 0:02:18]}  Bc4 {[%clk 0:00:57]} 30. Qxe5 {[%clk 0:02:18]}  Bf6 {[%clk 0:00:57]} 31. Qe3 {[%clk 0:02:15]}  Re8 {[%clk 0:00:52]} 32. Qd2 {[%clk 0:02:13]}  Rd8 {[%clk 0:00:49]} 33. Qf4 {[%clk 0:02:07]}  Rxd1+ {[%clk 0:00:45]} 34. Nxd1 {[%clk 0:02:08]}  Qd5 {[%clk 0:00:42]} 35. Ne3 {[%clk 0:02:05]}  Qd3 {[%clk 0:00:36]} 36. h4 {[%clk 0:02:02]}  Qb1+ {[%clk 0:00:33]} 37. Kh2 {[%clk 0:02:02]}  Qxb4 {[%clk 0:00:34]} 38. Nd5 {[%clk 0:01:58]}  Qb2 {[%clk 0:00:31]} 39. Qb8+ {[%clk 0:01:44]}  Kg7 {[%clk 0:00:29]} 40. Qc7+ {[%clk 0:01:44]}  Kg8 {[%clk 0:00:25]} 41. Qc8+ {[%clk 0:01:44]}  Kg7 {[%clk 0:00:24]} 42. Qd7+ {[%clk 0:01:44]}  Kg8 {[%clk 0:00:21]} 43. Nxf6+ {[%clk 0:01:41]}  Qxf6 {[%clk 0:00:16]} 44. c6 {[%clk 0:01:42]}  Qe6 {[%clk 0:00:13]} 45. Qd8+ {[%clk 0:01:39]}  Kf7 {[%clk 0:00:13]} 46. c7 {[%clk 0:01:39]} 1-0


[Site "https://www.chess.com"]

[Event "Titled Tuesday Blitz November 15 Early 2022"]
[White "Gonzalez, Francisco Silva"]
[Black "Stribuk, Artiom"]
[WhiteFideId "1512285"]
[BlackFideId "13515659"]
[WhiteElo "2159"]
[BlackElo "2371"]
[Result "0-1"]
[Round "01"]
[TimeControl "180+1"]
[Date "2022.11.16"]
[WhiteClock "0:00:24"]
[BlackClock "0:00:10"]

1. d4 {[%clk 0:02:55]}  Nf6 {[%clk 0:02:53]} 2. c4 {[%clk 0:02:54]}  c5 {[%clk 0:02:52]} 3. d5 {[%clk 0:02:54]}  b5 {[%clk 0:02:53]} 4. cxb5 {[%clk 0:02:54]}  a6 {[%clk 0:02:53]} 5. b6 {[%clk 0:02:54]}  e6 {[%clk 0:02:53]} 6. Nc3 {[%clk 0:02:54]}  exd5 {[%clk 0:02:52]} 7. Nxd5 {[%clk 0:02:54]}  Nxd5 {[%clk 0:02:53]} 8. Qxd5 {[%clk 0:02:54]}  Nc6 {[%clk 0:02:54]} 9. e4 {[%clk 0:02:55]}  Be7 {[%clk 0:02:54]} 10. Bc4 {[%clk 0:02:55]}  O-O {[%clk 0:02:55]} 11. Nf3 {[%clk 0:02:55]}  Qxb6 {[%clk 0:02:51]} 12. O-O {[%clk 0:02:55]}  d6 {[%clk 0:02:51]} 13. Qh5 {[%clk 0:02:55]}  Be6 {[%clk 0:02:45]} 14. Bxe6 {[%clk 0:02:52]}  fxe6 {[%clk 0:02:46]} 15. Qg4 {[%clk 0:02:52]}  e5 {[%clk 0:02:15]} 16. Qe6+ {[%clk 0:02:49]}  Kh8 {[%clk 0:02:05]} 17. Bg5 {[%clk 0:02:48]}  Qc7 {[%clk 0:01:55]} 18. Bxe7 {[%clk 0:02:48]}  Qxe7 {[%clk 0:01:55]} 19. Qxe7 {[%clk 0:02:46]}  Nxe7 {[%clk 0:01:56]} 20. Rfd1 {[%clk 0:02:45]}  Rf6 {[%clk 0:01:53]} 21. b3 {[%clk 0:02:41]}  Nc6 {[%clk 0:01:53]} 22. Rd5 {[%clk 0:02:39]}  Rc8 {[%clk 0:01:12]} 23. Rad1 {[%clk 0:02:38]}  Nd4 {[%clk 0:01:12]} 24. Ne1 {[%clk 0:02:21]}  h6 {[%clk 0:01:07]} 25. f3 {[%clk 0:02:21]}  Kg8 {[%clk 0:01:07]} 26. Nd3 {[%clk 0:02:19]}  Kf7 {[%clk 0:01:05]} 27. Kf2 {[%clk 0:02:19]}  Ke6 {[%clk 0:01:05]} 28. Rc1 {[%clk 0:02:17]}  Rf7 {[%clk 0:00:52]} 29. b4 {[%clk 0:02:07]}  c4 {[%clk 0:00:52]} 30. Nb2 {[%clk 0:01:52]}  c3 {[%clk 0:00:47]} 31. Nd3 {[%clk 0:01:51]}  Rb7 {[%clk 0:00:39]} 32. Ke3 {[%clk 0:01:46]}  Rb5 {[%clk 0:00:37]} 33. Nf4+ {[%clk 0:01:36]}  Kd7 {[%clk 0:00:15]} 34. Nd3 {[%clk 0:01:23]}  Rxd5 {[%clk 0:00:12]} 35. exd5 {[%clk 0:01:23]}  Rc4 {[%clk 0:00:10]} 36. g4 {[%clk 0:01:14]}  Kc7 {[%clk 0:00:09]} 37. h4 {[%clk 0:01:05]}  Kb6 {[%clk 0:00:09]} 38. a4 {[%clk 0:01:05]}  c2 {[%clk 0:00:08]} 39. Ne1 {[%clk 0:00:59]}  Rc3+ {[%clk 0:00:08]} 40. Kd2 {[%clk 0:00:57]}  Rb3 {[%clk 0:00:09]} 41. Nxc2 {[%clk 0:00:54]}  Nxf3+ {[%clk 0:00:09]} 42. Ke2 {[%clk 0:00:51]}  Nxh4 {[%clk 0:00:10]} 43. b5 {[%clk 0:00:48]}  axb5 {[%clk 0:00:09]} 44. axb5 {[%clk 0:00:48]}  Ng6 {[%clk 0:00:10]} 45. Ne3 {[%clk 0:00:47]}  Nf4+ {[%clk 0:00:10]} 46. Kd2 {[%clk 0:00:37]}  Rd3+ {[%clk 0:00:10]} 47. Kc2 {[%clk 0:00:37]}  Rxe3 {[%clk 0:00:11]} 48. Ra1 {[%clk 0:00:37]}  Kxb5 {[%clk 0:00:12]} 49. Ra6 {[%clk 0:00:37]}  Kxa6 {[%clk 0:00:11]} 50. Kd2 {[%clk 0:00:32]}  Rg3 {[%clk 0:00:11]} 51. g5 {[%clk 0:00:32]}  hxg5 {[%clk 0:00:11]} 52. Kc2 {[%clk 0:00:24]}  g4 {[%clk 0:00:10]} 53. Kd2 {[%clk 0:00:24]}  Rf3 {[%clk 0:00:10]} 0-1


[Site "https://www.chess.com"]

[Event "Titled Tuesday Blitz November 15 Early 2022"]
[White "Gorodetzky, David"]
[Black "Ezat, Mohamed"]
[WhiteFideId "2813416"]
[BlackFideId "10600906"]
[WhiteElo "2497"]
[BlackElo "2386"]
[Result "1/2-1/2"]
[Round "01"]
[TimeControl "180+1"]
[Date "2022.11.15"]
[WhiteClock "0:00:04"]
[BlackClock "0:00:03"]

1. Nf3 {[%clk 0:03:00]}  Nf6 {[%clk 0:02:58]} 2. b3 {[%clk 0:03:00]}  g6 {[%clk 0:02:58]} 3. Bb2 {[%clk 0:03:00]}  Bg7 {[%clk 0:02:58]} 4. g3 {[%clk 0:03:01]}  O-O {[%clk 0:02:58]} 5. Bg2 {[%clk 0:03:01]}  d6 {[%clk 0:02:59]} 6. d4 {[%clk 0:03:02]}  e5 {[%clk 0:02:58]} 7. dxe5 {[%clk 0:03:02]}  Nfd7 {[%clk 0:02:58]} 8. Qd2 {[%clk 0:02:59]}  Nc6 {[%clk 0:02:58]} 9. Nc3 {[%clk 0:02:58]}  Ndxe5 {[%clk 0:02:57]} 10. O-O-O {[%clk 0:02:53]}  a5 {[%clk 0:02:55]} 11. Nxe5 {[%clk 0:02:49]}  Nxe5 {[%clk 0:02:53]} 12. h4 {[%clk 0:02:46]}  h5 {[%clk 0:02:45]} 13. a4 {[%clk 0:02:41]}  Re8 {[%clk 0:02:33]} 14. Kb1 {[%clk 0:02:37]}  Bf5 {[%clk 0:02:26]} 15. Nd5 {[%clk 0:02:23]}  Be6 {[%clk 0:01:43]} 16. Qc3 {[%clk 0:01:53]}  c6 {[%clk 0:01:35]} 17. Nf4 {[%clk 0:01:52]}  Bf6 {[%clk 0:01:29]} 18. Qd2 {[%clk 0:01:43]}  d5 {[%clk 0:01:27]} 19. Nxe6 {[%clk 0:01:16]}  Rxe6 {[%clk 0:01:26]} 20. e4 {[%clk 0:01:16]}  dxe4 {[%clk 0:01:24]} 21. Qf4 {[%clk 0:01:13]}  Qe7 {[%clk 0:01:22]} 22. Bh3 {[%clk 0:01:12]}  Rd6 {[%clk 0:01:07]} 23. Qxe4 {[%clk 0:01:11]}  Rad8 {[%clk 0:01:01]} 24. Rxd6 {[%clk 0:01:11]}  Qxd6 {[%clk 0:01:01]} 25. Re1 {[%clk 0:01:06]}  Ng4 {[%clk 0:00:38]} 26. Bxg4 {[%clk 0:01:06]}  Bxb2 {[%clk 0:00:36]} 27. Kxb2 {[%clk 0:00:59]}  hxg4 {[%clk 0:00:37]} 28. Qxg4 {[%clk 0:00:37]}  Qf6+ {[%clk 0:00:36]} 29. Kb1 {[%clk 0:00:37]}  Qxf2 {[%clk 0:00:36]} 30. Rh1 {[%clk 0:00:37]}  Rd2 {[%clk 0:00:23]} 31. Rc1 {[%clk 0:00:37]}  Qd4 {[%clk 0:00:20]} 32. Qc8+ {[%clk 0:00:36]}  Kg7 {[%clk 0:00:20]} 33. Qxb7 {[%clk 0:00:36]}  c5 {[%clk 0:00:20]} 34. Qb5 {[%clk 0:00:23]}  Qc3 {[%clk 0:00:18]} 35. g4 {[%clk 0:00:15]}  Rd4 {[%clk 0:00:17]} 36. h5 {[%clk 0:00:12]}  Rb4 {[%clk 0:00:17]} 37. Qe2 {[%clk 0:00:03]}  c4 {[%clk 0:00:16]} 38. h6+ {[%clk 0:00:01]}  Kh7 {[%clk 0:00:15]} 39. Qf2 {[%clk 0:00:02]}  Rb7 {[%clk 0:00:07]} 40. Qg2 {[%clk 0:00:03]}  Rb4 {[%clk 0:00:02]} 41. Qd5 {[%clk 0:00:03]}  Rxb3+ {[%clk 0:00:03]} 42. cxb3 {[%clk 0:00:03]}  Qxb3+ {[%clk 0:00:03]} 43. Ka1 {[%clk 0:00:03]}  Qa3+ {[%clk 0:00:04]} 44. Kb1 {[%clk 0:00:04]}  Qb3+ {[%clk 0:00:05]} 45. Ka1 {[%clk 0:00:05]}  Qxa4+ {[%clk 0:00:05]} 46. Kb1 {[%clk 0:00:05]}  Qb3+ {[%clk 0:00:05]} 47. Ka1 {[%clk 0:00:06]}  Qa3+ {[%clk 0:00:06]} 48. Kb1 {[%clk 0:00:06]}  Qb3+ {[%clk 0:00:05]} 49. Ka1 {[%clk 0:00:07]}  Qa3+ {[%clk 0:00:03]} 50. Kb1 {[%clk 0:00:04]}  Qb3+ {[%clk 0:00:03]} 1/2-1/2


[Site "https://www.chess.com"]

[Event "Titled Tuesday Blitz November 15 Early 2022"]
[White "Grandelius, Nils"]
[Black "Tymrakiewicz, Rafal"]
[WhiteFideId "1710400"]
[BlackFideId "1108832"]
[WhiteElo "2617"]
[BlackElo "2138"]
[Result "1-0"]
[Round "01"]
[TimeControl "180+1"]
[Date "2022.11.16"]
[WhiteClock "0:00:37"]
[BlackClock "0:00:26"]

1. c4 {[%clk 0:02:59]}  g6 {[%clk 0:02:53]} 2. g3 {[%clk 0:02:56]}  Bg7 {[%clk 0:02:53]} 3. Bg2 {[%clk 0:02:57]}  e5 {[%clk 0:02:51]} 4. Nc3 {[%clk 0:02:57]}  d6 {[%clk 0:02:51]} 5. e3 {[%clk 0:02:52]}  Ne7 {[%clk 0:02:51]} 6. Nge2 {[%clk 0:02:51]}  O-O {[%clk 0:02:52]} 7. b3 {[%clk 0:02:51]}  Nd7 {[%clk 0:02:51]} 8. Bb2 {[%clk 0:02:52]}  f5 {[%clk 0:02:51]} 9. d3 {[%clk 0:02:45]}  Nf6 {[%clk 0:02:50]} 10. Qd2 {[%clk 0:02:45]}  g5 {[%clk 0:02:45]} 11. f4 {[%clk 0:02:40]}  gxf4 {[%clk 0:02:38]} 12. exf4 {[%clk 0:02:35]}  Ng6 {[%clk 0:02:39]} 13. O-O-O {[%clk 0:02:31]}  Bh6 {[%clk 0:02:25]} 14. Kb1 {[%clk 0:02:29]}  c6 {[%clk 0:02:10]} 15. h3 {[%clk 0:02:24]}  exf4 {[%clk 0:02:04]} 16. Nxf4 {[%clk 0:02:16]}  Nh5 {[%clk 0:01:52]} 17. Nce2 {[%clk 0:02:01]}  Nxg3 {[%clk 0:01:47]} 18. Qc3 {[%clk 0:01:52]}  Nxe2 {[%clk 0:01:38]} 19. Nxe2 {[%clk 0:01:53]}  Qe7 {[%clk 0:01:26]} 20. Bf3 {[%clk 0:01:50]}  Bg7 {[%clk 0:01:26]} 21. d4 {[%clk 0:01:39]}  f4 {[%clk 0:01:23]} 22. Ka1 {[%clk 0:01:37]}  Qe3 {[%clk 0:01:23]} 23. Rd3 {[%clk 0:01:35]}  Qf2 {[%clk 0:01:23]} 24. Rdd1 {[%clk 0:00:59]}  Qe3 {[%clk 0:01:21]} 25. h4 {[%clk 0:00:54]}  Re8 {[%clk 0:01:05]} 26. h5 {[%clk 0:00:46]}  Qxc3 {[%clk 0:01:05]} 27. Nxc3 {[%clk 0:00:38]}  Nf8 {[%clk 0:00:51]} 28. Ne4 {[%clk 0:00:35]}  Bf5 {[%clk 0:00:49]} 29. Nxd6 {[%clk 0:00:35]}  Re3 {[%clk 0:00:46]} 30. Nxf5 {[%clk 0:00:35]}  Rxf3 {[%clk 0:00:47]} 31. Rhg1 {[%clk 0:00:36]}  Rg3 {[%clk 0:00:32]} 32. Nxg3 {[%clk 0:00:35]}  fxg3 {[%clk 0:00:32]} 33. Rxg3 {[%clk 0:00:36]}  Kh8 {[%clk 0:00:30]} 34. Rdg1 {[%clk 0:00:36]}  Ne6 {[%clk 0:00:28]} 35. Rxg7 {[%clk 0:00:37]}  Nxg7 {[%clk 0:00:26]} 36. d5 {[%clk 0:00:37]} 1-0


[Site "https://www.chess.com"]

[Event "Titled Tuesday Blitz November 15 Early 2022"]
[White "Gurevich, Dmitry"]
[Black "Nguyen, Thai Dai Van"]
[WhiteFideId "2000407"]
[BlackFideId "358878"]
[WhiteElo "2506"]
[BlackElo "2534"]
[Result "1-0"]
[Round "01"]
[TimeControl "180+1"]
[Date "2022.11.16"]
[WhiteClock "0:00:34"]
[BlackClock "0:00:11"]

1. d4 {[%clk 0:02:53]}  Nf6 {[%clk 0:02:58]} 2. c4 {[%clk 0:02:53]}  e6 {[%clk 0:02:58]} 3. Nf3 {[%clk 0:02:51]}  d5 {[%clk 0:02:57]} 4. Nc3 {[%clk 0:02:50]}  c6 {[%clk 0:02:37]} 5. e3 {[%clk 0:02:49]}  Nbd7 {[%clk 0:02:36]} 6. Qc2 {[%clk 0:02:48]}  Bd6 {[%clk 0:02:35]} 7. b3 {[%clk 0:02:48]}  O-O {[%clk 0:02:32]} 8. Be2 {[%clk 0:02:48]}  b6 {[%clk 0:02:30]} 9. O-O {[%clk 0:02:47]}  Bb7 {[%clk 0:02:31]} 10. Bb2 {[%clk 0:02:47]}  Qe7 {[%clk 0:02:29]} 11. Rad1 {[%clk 0:02:46]}  Rfe8 {[%clk 0:02:28]} 12. Rfe1 {[%clk 0:02:46]}  Rad8 {[%clk 0:02:29]} 13. Bf1 {[%clk 0:02:46]}  e5 {[%clk 0:02:22]} 14. cxd5 {[%clk 0:02:43]}  e4 {[%clk 0:02:01]} 15. Nh4 {[%clk 0:01:53]}  Bxh2+ {[%clk 0:01:24]} 16. Kxh2 {[%clk 0:01:50]}  Ng4+ {[%clk 0:01:24]} 17. Kh3 {[%clk 0:01:35]}  Qf6 {[%clk 0:00:34]} 18. Kxg4 {[%clk 0:01:25]}  Bc8 {[%clk 0:00:27]} 19. Kg3 {[%clk 0:01:17]}  Qd6+ {[%clk 0:00:23]} 20. f4 {[%clk 0:01:08]}  exf3+ {[%clk 0:00:24]} 21. Kf2 {[%clk 0:00:59]}  Nf6 {[%clk 0:00:18]} 22. gxf3 {[%clk 0:00:55]}  Qh2+ {[%clk 0:00:17]} 23. Ng2 {[%clk 0:00:54]}  cxd5 {[%clk 0:00:16]} 24. Ne2 {[%clk 0:00:51]}  Bh3 {[%clk 0:00:15]} 25. Nf4 {[%clk 0:00:49]}  Rd6 {[%clk 0:00:14]} 26. Nxh3 {[%clk 0:00:47]}  Qxh3 {[%clk 0:00:15]} 27. Nf4 {[%clk 0:00:44]}  Qh4+ {[%clk 0:00:16]} 28. Kg1 {[%clk 0:00:43]}  g5 {[%clk 0:00:12]} 29. Ng2 {[%clk 0:00:41]}  Qh3 {[%clk 0:00:13]} 30. Ba3 {[%clk 0:00:39]}  Rde6 {[%clk 0:00:11]} 31. Qc7 {[%clk 0:00:35]}  Nh5 {[%clk 0:00:11]} 32. Qh2 {[%clk 0:00:34]} 1-0


[Site "https://www.chess.com"]

[Event "Titled Tuesday Blitz November 15 Early 2022"]
[White "Hadzovic, Amir"]
[Black "Yuan, Qingyu"]
[WhiteFideId "14402300"]
[BlackFideId "8609772"]
[WhiteElo "2262"]
[BlackElo "2359"]
[Result "1-0"]
[Round "01"]
[TimeControl "180+1"]
[Date "2022.11.16"]
[WhiteClock "0:01:04"]
[BlackClock "0:00:27"]

1. e4 {[%clk 0:02:48]}  c6 {[%clk 0:02:59]} 2. Nf3 {[%clk 0:02:45]}  d5 {[%clk 0:03:00]} 3. d3 {[%clk 0:02:46]}  dxe4 {[%clk 0:03:01]} 4. dxe4 {[%clk 0:02:47]}  Qxd1+ {[%clk 0:03:01]} 5. Kxd1 {[%clk 0:02:48]}  Nf6 {[%clk 0:03:02]} 6. Nfd2 {[%clk 0:02:48]}  g6 {[%clk 0:03:02]} 7. f3 {[%clk 0:02:48]}  Bh6 {[%clk 0:03:02]} 8. c3 {[%clk 0:02:48]}  Be6 {[%clk 0:03:02]} 9. Kc2 {[%clk 0:02:47]}  Nbd7 {[%clk 0:03:01]} 10. Bc4 {[%clk 0:02:46]}  Bxc4 {[%clk 0:02:43]} 11. Nxc4 {[%clk 0:02:45]}  Bxc1 {[%clk 0:02:44]} 12. Kxc1 {[%clk 0:02:43]}  g5 {[%clk 0:02:43]} 13. a4 {[%clk 0:02:42]}  O-O-O {[%clk 0:02:43]} 14. a5 {[%clk 0:02:41]}  Kc7 {[%clk 0:02:42]} 15. Nbd2 {[%clk 0:02:39]}  h5 {[%clk 0:02:32]} 16. b4 {[%clk 0:02:38]}  h4 {[%clk 0:02:31]} 17. Kc2 {[%clk 0:02:37]}  Nh5 {[%clk 0:02:17]} 18. Rab1 {[%clk 0:02:19]}  a6 {[%clk 0:02:11]} 19. Rbd1 {[%clk 0:02:13]}  Nf4 {[%clk 0:02:11]} 20. g3 {[%clk 0:02:12]}  hxg3 {[%clk 0:02:05]} 21. hxg3 {[%clk 0:02:13]}  Ne2 {[%clk 0:02:06]} 22. g4 {[%clk 0:02:05]}  f6 {[%clk 0:01:58]} 23. e5 {[%clk 0:01:49]}  Rh4 {[%clk 0:01:11]} 24. Ne4 {[%clk 0:01:43]}  Rdh8 {[%clk 0:01:05]} 25. Rxh4 {[%clk 0:01:40]}  Rxh4 {[%clk 0:01:00]} 26. e6 {[%clk 0:01:11]}  Nf8 {[%clk 0:00:56]} 27. Nxf6 {[%clk 0:01:07]}  Kc8 {[%clk 0:00:31]} 28. Nb6+ {[%clk 0:01:05]}  Kc7 {[%clk 0:00:25]} 29. Ne8+ {[%clk 0:01:05]}  Kb8 {[%clk 0:00:26]} 30. Rd8+ {[%clk 0:01:04]}  Ka7 {[%clk 0:00:27]} 31. Ra8# {[%clk 0:01:04]} 1-0


[Site "https://www.chess.com"]

[Event "Titled Tuesday Blitz November 15 Early 2022"]
[White "Ibarra Jerez, Jose Carlos"]
[Black "Rostomyan, Mikayel"]
[WhiteFideId "2226332"]
[BlackFideId "13313754"]
[WhiteElo "2638"]
[BlackElo "2009"]
[Result "1-0"]
[Round "01"]
[TimeControl "180+1"]
[Date "2022.11.16"]
[WhiteClock "0:00:10"]
[BlackClock "0:00:01"]

1. e4 {[%clk 0:02:58]}  c5 {[%clk 0:02:55]} 2. Nf3 {[%clk 0:02:58]}  Nc6 {[%clk 0:02:55]} 3. d4 {[%clk 0:02:59]}  cxd4 {[%clk 0:02:56]} 4. Nxd4 {[%clk 0:03:00]}  g6 {[%clk 0:02:56]} 5. Nc3 {[%clk 0:03:00]}  Bg7 {[%clk 0:02:56]} 6. Be3 {[%clk 0:03:00]}  Nf6 {[%clk 0:02:57]} 7. Bc4 {[%clk 0:03:01]}  O-O {[%clk 0:02:57]} 8. Bb3 {[%clk 0:03:01]}  d5 {[%clk 0:02:57]} 9. exd5 {[%clk 0:03:01]}  Na5 {[%clk 0:02:58]} 10. Qf3 {[%clk 0:03:01]}  Bg4 {[%clk 0:02:56]} 11. Qg3 {[%clk 0:03:02]}  Nxb3 {[%clk 0:02:57]} 12. axb3 {[%clk 0:03:01]}  Bh5 {[%clk 0:02:57]} 13. d6 {[%clk 0:03:01]}  Ng4 {[%clk 0:02:56]} 14. O-O {[%clk 0:03:00]}  Be5 {[%clk 0:02:56]} 15. f4 {[%clk 0:03:00]}  Bxd6 {[%clk 0:02:55]} 16. Ndb5 {[%clk 0:03:00]}  a6 {[%clk 0:02:16]} 17. Nxd6 {[%clk 0:02:56]}  Qxd6 {[%clk 0:02:13]} 18. h3 {[%clk 0:02:54]}  Nh6 {[%clk 0:01:39]} 19. Qf2 {[%clk 0:02:49]}  f5 {[%clk 0:01:31]} 20. Bd4 {[%clk 0:02:41]}  Nf7 {[%clk 0:01:26]} 21. Rae1 {[%clk 0:02:37]}  Rfe8 {[%clk 0:01:19]} 22. Be5 {[%clk 0:02:23]}  Qc6 {[%clk 0:01:01]} 23. Re3 {[%clk 0:02:19]}  b5 {[%clk 0:00:52]} 24. Rfe1 {[%clk 0:02:16]}  b4 {[%clk 0:00:44]} 25. Na4 {[%clk 0:02:16]}  Rad8 {[%clk 0:00:43]} 26. c4 {[%clk 0:02:11]}  Bd1 {[%clk 0:00:40]} 27. Kh2 {[%clk 0:01:45]}  Bxb3 {[%clk 0:00:39]} 28. Rxb3 {[%clk 0:01:39]}  Qxa4 {[%clk 0:00:38]} 29. Rbe3 {[%clk 0:01:40]}  Qc6 {[%clk 0:00:36]} 30. b3 {[%clk 0:01:38]}  a5 {[%clk 0:00:35]} 31. Ba1 {[%clk 0:01:37]}  e5 {[%clk 0:00:24]} 32. Bxe5 {[%clk 0:01:17]}  Nxe5 {[%clk 0:00:18]} 33. Rxe5 {[%clk 0:01:18]}  Rxe5 {[%clk 0:00:17]} 34. Rxe5 {[%clk 0:01:19]}  a4 {[%clk 0:00:15]} 35. Re7 {[%clk 0:01:04]}  a3 {[%clk 0:00:13]} 36. Qh4 {[%clk 0:00:39]}  h5 {[%clk 0:00:10]} 37. Qg5 {[%clk 0:00:39]}  Rd2 {[%clk 0:00:08]} 38. Ra7 {[%clk 0:00:28]}  a2 {[%clk 0:00:08]} 39. c5 {[%clk 0:00:20]}  h4 {[%clk 0:00:02]} 40. Ra5 {[%clk 0:00:13]}  Qd5 {[%clk 0:00:01]} 41. Qxg6+ {[%clk 0:00:10]}  Kf8 {[%clk 0:00:01]} 42. Ra7 {[%clk 0:00:10]} 1-0


[Site "https://www.chess.com"]

[Event "Titled Tuesday Blitz November 15 Early 2022"]
[White "Ivic, Velimir"]
[Black "Fernandez Garcia, Gumersindo"]
[WhiteFideId "950122"]
[BlackFideId "24516740"]
[WhiteElo "2625"]
[BlackElo "2140"]
[Result "1/2-1/2"]
[Round "01"]
[TimeControl "180+1"]
[Date "2022.11.16"]
[WhiteClock "0:00:10"]
[BlackClock "0:00:38"]

1. e4 {[%clk 0:03:00]}  c5 {[%clk 0:02:58]} 2. Nf3 {[%clk 0:03:00]}  e6 {[%clk 0:02:57]} 3. d4 {[%clk 0:03:00]}  cxd4 {[%clk 0:02:58]} 4. Nxd4 {[%clk 0:03:00]}  Nf6 {[%clk 0:02:59]} 5. Nc3 {[%clk 0:03:00]}  Nc6 {[%clk 0:02:59]} 6. Ndb5 {[%clk 0:03:00]}  Bb4 {[%clk 0:03:00]} 7. a3 {[%clk 0:02:59]}  Bxc3+ {[%clk 0:03:00]} 8. Nxc3 {[%clk 0:03:00]}  d5 {[%clk 0:03:00]} 9. exd5 {[%clk 0:03:01]}  exd5 {[%clk 0:03:00]} 10. Bd3 {[%clk 0:03:01]}  O-O {[%clk 0:03:00]} 11. O-O {[%clk 0:03:00]}  Bg4 {[%clk 0:03:01]} 12. Qd2 {[%clk 0:02:58]}  Re8 {[%clk 0:03:00]} 13. h3 {[%clk 0:02:44]}  Bh5 {[%clk 0:02:51]} 14. Qg5 {[%clk 0:02:43]}  Bg6 {[%clk 0:02:48]} 15. Bxg6 {[%clk 0:02:40]}  hxg6 {[%clk 0:02:49]} 16. Rd1 {[%clk 0:02:24]}  d4 {[%clk 0:02:37]} 17. Bf4 {[%clk 0:02:04]}  Nh5 {[%clk 0:02:12]} 18. Qg4 {[%clk 0:01:11]}  Qc8 {[%clk 0:01:43]} 19. Nd5 {[%clk 0:00:59]}  Qxg4 {[%clk 0:01:28]} 20. hxg4 {[%clk 0:01:00]}  Nxf4 {[%clk 0:01:27]} 21. Nxf4 {[%clk 0:01:01]}  Re4 {[%clk 0:01:22]} 22. g3 {[%clk 0:01:00]}  g5 {[%clk 0:01:19]} 23. Nd3 {[%clk 0:00:49]}  Re2 {[%clk 0:01:18]} 24. Rac1 {[%clk 0:00:45]}  f6 {[%clk 0:01:18]} 25. Re1 {[%clk 0:00:39]}  Rae8 {[%clk 0:01:17]} 26. Rxe2 {[%clk 0:00:40]}  Rxe2 {[%clk 0:01:18]} 27. Kf1 {[%clk 0:00:40]}  Re4 {[%clk 0:01:17]} 28. f3 {[%clk 0:00:39]}  Re3 {[%clk 0:01:17]} 29. Kf2 {[%clk 0:00:38]}  Ne5 {[%clk 0:01:15]} 30. Nxe5 {[%clk 0:00:36]}  fxe5 {[%clk 0:01:16]} 31. Rh1 {[%clk 0:00:26]}  e4 {[%clk 0:01:09]} 32. fxe4 {[%clk 0:00:26]}  Rxe4 {[%clk 0:01:10]} 33. Rd1 {[%clk 0:00:25]}  Kf7 {[%clk 0:01:08]} 34. Rd3 {[%clk 0:00:26]}  Ke6 {[%clk 0:01:07]} 35. Rb3 {[%clk 0:00:26]}  b6 {[%clk 0:01:07]} 36. Rb5 {[%clk 0:00:26]}  Re5 {[%clk 0:01:01]} 37. Rb4 {[%clk 0:00:25]}  Re4 {[%clk 0:01:00]} 38. c3 {[%clk 0:00:25]}  Kd5 {[%clk 0:00:55]} 39. cxd4 {[%clk 0:00:23]}  Rxd4 {[%clk 0:00:53]} 40. Rb5+ {[%clk 0:00:23]}  Ke4 {[%clk 0:00:53]} 41. Rxg5 {[%clk 0:00:24]}  Rd2+ {[%clk 0:00:54]} 42. Ke1 {[%clk 0:00:25]}  Rxb2 {[%clk 0:00:54]} 43. Rxg7 {[%clk 0:00:26]}  a5 {[%clk 0:00:53]} 44. g5 {[%clk 0:00:25]}  Kf5 {[%clk 0:00:52]} 45. g6 {[%clk 0:00:25]}  Rb3 {[%clk 0:00:52]} 46. a4 {[%clk 0:00:21]}  Rxg3 {[%clk 0:00:51]} 47. Kd2 {[%clk 0:00:18]}  Rg4 {[%clk 0:00:41]} 48. Rg8 {[%clk 0:00:12]}  Kf6 {[%clk 0:00:39]} 49. g7 {[%clk 0:00:09]}  Kf7 {[%clk 0:00:38]} 50. Rb8 {[%clk 0:00:08]}  Kxg7 {[%clk 0:00:38]} 51. Rxb6 {[%clk 0:00:08]}  Rxa4 {[%clk 0:00:39]} 52. Kc3 {[%clk 0:00:09]}  Kf7 {[%clk 0:00:38]} 53. Kb3 {[%clk 0:00:09]}  Ra1 {[%clk 0:00:38]} 54. Kb2 {[%clk 0:00:09]}  Ra4 {[%clk 0:00:38]} 55. Kb3 {[%clk 0:00:09]}  Rd4 {[%clk 0:00:37]} 56. Ra6 {[%clk 0:00:09]}  a4+ {[%clk 0:00:38]} 57. Rxa4 {[%clk 0:00:09]}  Rxa4 {[%clk 0:00:38]} 58. Kxa4 {[%clk 0:00:10]} 1/2-1/2


[Site "https://www.chess.com"]